Cogmind - Beta 9.4 *** ADVENTURER MODE // 2020.03.01 @ 17:10:31 Player: ChromeKnight Result: Self-destructed Performance ------------- Evolutions (1) 500 Regions Visited (3) 600 Robots Destroyed (7) 35 Value Destroyed (86) 86 Prototype IDs (0) 0 Alien Tech Used (0) 0 Bonus (0) 0 TOTAL SCORE: 1221 Bonus ------- None Cogmind --------- Core Integrity 378/400 Matter 300/300 Energy 250/250 System Corruption 0% Temperature Cool (271) Movement Walking (120) Location -9/Materials Parts ------- > --- POWER (1) -------- Ion Engine > --- PROPULSION (3) --- Aluminum Leg Aluminum Leg > --- UTILITY (3) ------ Small Storage Unit Signal Interpreter Salvage Targeting Computer > --- WEAPON (2) ------- Beam Rifle > --- INVENTORY (6) ---- Weight Redist. System Mining Laser Mining Laser Mining Laser Peak State ------------ > --- POWER ------------ Ion Engine > --- PROPULSION ------- Aluminum Leg Compact Wheel Compact Wheel > --- UTILITY ---------- Small Storage Unit Signal Interpreter Salvage Targeting Computer > --- WEAPON ----------- Medium Laser Beam Rifle > --- INVENTORY -------- Weight Redist. System Mining Laser Mining Laser Mining Laser [Rating: 11] Favorites ----------- Power Ion Engine Engine Ion Engine Propulsion Compact Wheel Leg Aluminum Leg Wheel Compact Wheel Utility Small Storage Unit Storage Small Storage Unit Processor Signal Interpreter Weapon Medium Laser Energy Gun Medium Laser Build | -11 -10 -10 -9 ------- Run | Scr Mat Min Mat Slots Evolved 2 | . . . 2 Power . | . . . . Propulsion 1 | . . . 1 Utility 1 | . . . 1 Weapon . | . . . . Parts Attached 11 | 5 2 . 4 Power 1 | 1 . . . Engine 1 | 1 . . . Core . | . . . . Reactor . | . . . . Propulsion 4 | 1 1 . 2 Treads . | . . . . Leg 2 | . . . 2 Wheel 2 | 1 1 . . Hover . | . . . . Flight . | . . . . Utility 3 | 1 1 . 1 Device . | . . . . Storage 1 | 1 . . . Processor 2 | . 1 . 1 Hackware . | . . . . Protection . | . . . . Artifact . | . . . . Weapon 3 | 2 . . 1 Energy Gun 3 | 2 . . 1 Energy Cannon . | . . . . Ballistic Gun . | . . . . Ballistic Cannon . | . . . . Launcher . | . . . . Special Weapon . | . . . . Impact Weapon . | . . . . Slashing Weapon . | . . . . Piercing Weapon . | . . . . Special Melee Weapon . | . . . . Unidentified Prototypes . | . . . . Parts Lost 2 | . . . 2 Power . | . . . . Propulsion 1 | . . . 1 Utility . | . . . . Weapon 1 | . . . 1 Highest Loss Streak 2 | . . . 2 Average Slot Usage (%) 88 | . 84 100 90 Engine 13 | . 14 14 11 Leg 1 | . . . 6 Wheel 23 | . 24 28 19 Storage 13 | . 14 14 11 Processor 9 | . 2 14 20 Energy Gun 26 | . 28 28 22 Naked Turns . | . . . . Heaviest Build 14 | 12 12 12 14 Greatest Support 32 | 16 32 32 32 Greatest Overweight (x) 1 | 1 . . 1 Average Overweight (x) . | . . . . Largest Inventory Capacity 6 | 6 6 6 6 Average Capacity 5 | 5 6 6 6 Most Carried 5 | . 4 4 5 Average Carried 1 | . . 4 4 Final Capacity 6 | 6 6 6 6 Final Carried 4 | . 4 4 4 Class Distribution -------------------- 100% | Mutant Dominant Class ---------------- Mutant | -10/Materials Mutant | -10/Mines Mutant | -9/Materials Resources | -11 -10 -10 -9 ----------- Run | Scr Mat Min Mat Matter Collected 310 | 246 24 . 40 Remotely . | . . . . Salvage Created 181 | . 101 . 80 Parts 17 | . 9 . 8 Haulers Intercepted 1 | . 1 . . Recyclers Shooed 1 | . 1 . . Parts Field Recycled . | . . . . Retrieved Matter . | . . . . Parts Self-Destructed . | . . . . Prevented . | . . . . Kills | -11 -10 -10 -9 ------- Run | Scr Mat Min Mat Combat Hostiles Destroyed 6 | . 3 . 3 Guns 6 | . 3 . 3 Classes Destroyed 3 | . 2 . 1 Hauler 1 | . 1 . . Swarmer 5 | . 3 . 2 Grunt 1 | . . . 1 Best Kill Streak 3 | . 3 . 2 Combat Bots Only 3 | . 3 . 2 Max Kills in Single Turn 1 | . 1 . 1 Gunslinging . | . . . . Exploded . | . . . . Melee . | . . . . Uniques/NPCs Destroyed . | . . . . Combat | -11 -10 -10 -9 -------- Run | Scr Mat Min Mat Damage Taken 299 | . 84 . 215 Core 47 | . 25 . 22 Absorbed by Shields . | . . . . Core Remaining (%) 95 | 100 . 90 . Volleys Fired 20 | . 11 . 9 Largest 2 | . 2 . 2 Hottest 106 | . 90 . 106 Shots Fired 39 | . 22 . 17 Gun 39 | . 22 . 17 Cannon . | . . . . Launcher . | . . . . Special . | . . . . Kinetic . | . . . . Thermal 39 | . 22 . 17 Explosive . | . . . . Electromagnetic . | . . . . Robot Hit Streak 7 | . 6 . 7 Robot Miss Streak 2 | . 2 . 2 Penetration Max . | . . . . Secondary Targets 2 | . 1 . 1 Max Gunslinging Chain 1 | . 1 . 1 Shots Hit Robots 27 | . 15 . 12 Core Hits 13 | . 6 . 7 Critical Hits . | . . . . Critical Kills . | . . . . Critical Parts Destroyed . | . . . . Melee Attacks . | . . . . Impact . | . . . . Slashing . | . . . . Piercing . | . . . . Sneak Attacks . | . . . . Combat Hostiles . | . . . . Follow-up Attacks . | . . . . Damage Inflicted 331 | . 159 . 172 Guns 331 | . 159 . 172 Cannons . | . . . . Explosions . | . . . . Melee . | . . . . Ramming . | . . . . Kinetic . | . . . . Thermal 331 | . 159 . 172 Explosive . | . . . . Electromagnetic . | . . . . Impact . | . . . . Slashing . | . . . . Piercing . | . . . . Highest Corruption . | . . . . Average Corruption . | . . . . Corruption Purged . | . . . . Overload Shots . | . . . . Overflow Damage . | . . . . Projectiles . | . . . . Explosions . | . . . . Melee . | . . . . Knockbacks . | . . . . Impact . | . . . . Kinetic . | . . . . Secondary . | . . . . Self-Inflicted Damage . | . . . . Shots . | . . . . Rammed . | . . . . Targets Rammed . | . . . . Kicked . | . . . . Crushed . | . . . . Highest Temperature 271 | . 150 . 271 Average Temperature 76 | . 60 . 101 Received Heat Transfer 99 | . . . 99 Siege Activations . | . . . . Robots Corrupted . | . . . . Combat Hostiles . | . . . . Parts Fried . | . . . . Impact Corruptions . | . . . . Robots Melted . | . . . . Combat Hostiles . | . . . . Parts Melted 2 | . 1 . 1 Heat Transferred 903 | . 422 . 481 Parts Sabotaged . | . . . . Parts Stolen . | . . . . Parts Stripped . | . . . . Power Chain Reactions . | . . . . Missiles Intercepted . | . . . . Alert | -11 -10 -10 -9 ------- Run | Scr Mat Min Mat Peak Influence 110 | . 110 36 86 Average Influence 43 | . 62 36 27 Maximum Alert Level . | . . . . Low Security (%) 100 | 100 100 100 100 Level 1 . | . . . . Level 2 . | . . . . Level 3 . | . . . . Level 4 . | . . . . Level 5 . | . . . . High Security . | . . . . Max Security . | . . . . Squads Dispatched 2 | . 1 . 1 Investigation 1 | . 1 . . Extermination . | . . . . Reinforcement 1 | . . . 1 Assault . | . . . . Garrison . | . . . . Intercept . | . . . . Construction Impeded . | . . . . Haulers Reinforced . | . . . . Stealth | -11 -10 -10 -9 --------- Run | Scr Mat Min Mat Distress Signals 1 | . . . 1 Communications Jammed . | . . . . Distress Signals . | . . . . Times Spotted 14 | . 6 . 8 Peak Tracking Total 8 | . 5 . 8 Tactical Retreats . | . . . . Traps | -11 -10 -10 -9 ------- Run | Scr Mat Min Mat Traps Triggered 1 | . 1 . . Indirectly . | . . . . Trap Hack Attempts . | . . . . Triggered . | . . . . Disarmed . | . . . . Reprogrammed . | . . . . Reused . | . . . . Traps Extracted . | . . . . Installed . | . . . . Triggered . | . . . . Machines | -11 -10 -10 -9 ---------- Run | Scr Mat Min Mat Machines Disabled . | . . . . Max in Single Turn . | . . . . Machines Sabotaged . | . . . . Garrisons Compromised . | . . . . Overloaded Fab Kills . | . . . . Fab Network Shutdowns . | . . . . Hacking | -11 -10 -10 -9 --------- Run | Scr Mat Min Mat Machines Accessed 3 | . 3 . . Terminals 3 | . 3 . . Fabricators . | . . . . Repair Stations . | . . . . Recycling Units . | . . . . Scanalyzers . | . . . . Garrison Access . | . . . . Total Hacks 10 | . 10 . . Successful 6 | . 6 . . Failed 4 | . 4 . . Catastrophic . | . . . . Database Lockouts . | . . . . Manual 8 | . 8 . . Terminals 10 | . 10 . . Fabricators . | . . . . Repair Stations . | . . . . Recycling Units . | . . . . Scanalyzers . | . . . . Garrison Access . | . . . . Terminal Hacks 3 | . 3 . . Record 2 | . 2 . . Recall Investigation 1 | . 1 . . Fabricator Hacks . | . . . . Repair Station Hacks . | . . . . Recycling Unit Hacks . | . . . . Scanalyzer . | . . . . Garrison Access Hacks . | . . . . Unauthorized Hacks 8 | . 8 . . Terminals 3 | . 3 . . Botnet 3 | . 3 . . Fabricators . | . . . . Repair Stations . | . . . . Recycling Units . | . . . . Scanalyzers . | . . . . Garrison Access . | . . . . Data Cores Recovered . | . . . . Used . | . . . . Hacking Detections 3 | . 3 . . Full Trace Events 1 | . 1 . . Feedback Events . | . . . . Feedback Blocked . | . . . . Robot Schematics Acquired . | . . . . Robots Built . | . . . . Matter . | . . . . Time . | . . . . Total Robot Build Rating . | . . . . Part Schematics Acquired . | . . . . Parts Built . | . . . . Matter . | . . . . Time . | . . . . Total Part Build Rating . | . . . . Parts Repaired . | . . . . Time . | . . . . Parts Recycled . | . . . . Recycled Matter . | . . . . Retrieved Matter . | . . . . Retrieved Components . | . . . . Parts Scanalyzed . | . . . . Part Schematics Acquired . | . . . . Parts Damaged . | . . . . Bothacking | -11 -10 -10 -9 ------------ Run | Scr Mat Min Mat Used RIF Installer . | . . . . Robots Hacked . | . . . . Non-combat . | . . . . Combat . | . . . . Robot Hacks Applied . | . . . . Relay Couplers Released . | . . . . Robots Rewired . | . . . . Allies Hacked . | . . . . Hacks Repelled . | . . . . Allies | -11 -10 -10 -9 -------- Run | Scr Mat Min Mat Total Allies . | . . . . Largest Group . | . . . . Highest-Rated Group . | . . . . Highest-Rated Ally . | . . . . Total Orders . | . . . . Ally Attacks . | . . . . Total Damage . | . . . . Kills . | . . . . Allies Corrupted . | . . . . Allies Melted . | . . . . Intel | -11 -10 -10 -9 ------- Run | Scr Mat Min Mat Robot Analysis Total . | . . . . Derelict Logs Recovered . | . . . . Drone Launches . | . . . . Drone Recoveries . | . . . . Exploration | -11 -10 -10 -9 ------------- Run | Scr Mat Min Mat Turns Passed 394 | 44 202 54 94 Spaces Moved 317 | 40 163 55 59 Core 10 | 10 . . . Treads . | . . . . Legs 4 | . . . 4 Wheels 303 | 30 163 55 55 Hover . | . . . . Flight . | . . . . Fastest Speed 50 | 50 100 100 100 Average Speed 99 | 91 100 100 101 Slowest Speed 150 | 100 100 100 150 Overloaded Moves . | . . . . Propulsion Burnouts . | . . . . Robots Hopped . | . . . . Cave-ins Triggered . | . . . . Exploration Rate (%) 13 | 4 26 15 8 Regions Visited 3 Branch Regions 1 Pre-discovered Areas . | . . . . Known Exits Taken 2 | . 1 1 . Unknown Exits Taken 1 | 1 . . . Scrap Searched . | . . . . Spaces Dug . | . . . . Terrain Destroyed . | . . . . Melee . | . . . . Projectile . | . . . . AOE . | . . . . Actions | -11 -10 -10 -9 --------- Run | Scr Mat Min Mat Total 351 | 44 179 54 74 Wait . | . . . . Move 314 | 39 162 54 59 Hop . | . . . . Pick Up 4 | . 4 . . Fast Attach 10 | 5 2 . 3 Attach . | . . . . Detach . | . . . . Swap 1 | . . . 1 Drop 2 | . . . 2 Fire 20 | . 11 . 9 Melee . | . . . . Ram . | . . . . Kick . | . . . . Crush . | . . . . Escape Stasis . | . . . . Rewire . | . . . . Trap . | . . . . Miscellaneous . | . . . . Route ------- -11/Scrapyard -10/Materials (discovered 2 exits: *Mat / *Min) -10/Mines -9/Materials History --------- Turn | Location | Event 21 | -11/Scrapyard | Discovered new exit (range 16) 45 | -11/Scrapyard | Entered Materials 118 | -10/Materials | Discovered new exit (range 11) 185 | -10/Materials | Discovered new exit (range 5) 234 | -10/Materials | Identified exit to Mines 247 | -10/Materials | Entered Mines 288 | -10/Mines | Discovered new exit (range 10) 300 | -10/Mines | Identified exit to Materials 301 | -10/Mines | Entered Materials 301 | -9/Materials | Evolved 2 slots: Propulsion x1, Utility x1 317 | -9/Materials | Build established: Mutant 395 | -9/Materials | Self-destructed Last Messages --------------- 00366_ K-01 Serf collects debris. 00369_ Acquired Aluminum Leg. 00369_ K-01 Serf collects debris. 00370_ Dropped Com. Wheel. 00372_ Acquired Aluminum Leg. 00374_ Acquired 40 matter. 00375_ K-01 Serf collects debris. 00376_ W-16 Scout distress signal alerts nearby ally. 00378_ S-10 Pest destroyed. 00379_ K-01 Serf collects debris. 00379_ ALERT: Hostiles spotted, dispatching reinforcements to Terminal M008. 00382_ K-01 Serf collects debris. 00384_ S-10 Pest destroyed. 00384_ Switching to secondary target: G-34 Mercenary. 00384_ R-06 Scavenger collects Lgt. Ion Engine. 00386_ K-01 Serf collects debris. 00390_ Com. Wheel destroyed. 00391_ Med. Laser destroyed. 00393_ K-01 Serf collects debris. Map ----- +----------------------------------------------------+ | ?????????????????????????????????????????? | | ?????????????????????????????????????????? | | ?????????????????????????????????????????? | | ?????????????????????????????????????????? | | ?????????????????????????????????????????? | | ?????????????????????????????????????????? | | ?????????????????????????????????????????? | | ?????????????????????????????????????????? | | ?????????????????????????????????????????? | | ?????????????????????????????????????????? | | ?????????????????????????????????????????? | | ?????????????????????????????????????????? | | ????????????????????""???????????????????? | | ????????????????????% ???#+??????????????? | | ????????????########+###? ???????????????? | | ??????????? = # ???????????????? | | ??????????? a s # ????????????????? | | ???????????? !* gw/?????????????????? | | ??????????? !* gg#?????????????????? | | ??????????# ** =??????????????????? | | ??????????# #??????????????????? | | ??????????# #??????????????????? | | ??????????# """ #??????????????????? | | ??????????# """ #??????????????????? | | ??????????# """a #??????????????????? | | ??????????# @! #??????????????????? | | ??????????# % #??????????????????? | | ??????????## """ =k #??????????????????? | | ???????????# """ #??????????????????? | | ???????????# """ #??????????????????? | | ???????????# +??????????????????? | | ???????????# #??????????????????? | | ???????????# """ #??????????????????? | | ?????####### """ ##?????????????????? | | ?????# [# """ #?????????????????? | | ?????# #?????????????????? | | ?????# #?????????????????? | | ?????# #?????????????????? | | ?????# ####### #?????????????????? | | ####### ##############?????????????????? | | # # # #??????????????????????? | | # # # #??????????????????????? | | # + + """"" ???????????????????????? | | # # # """"" ???????????????????????? | | # !! # # """""????????????????????????? | | # !!!# #######????????????????????????? | | # !!!#####??????????????????????????????? | | #######??????????????????????????????????? | | ?????????????????????????????????????????? | | ?????????????????????????????????????????? | +----------------------------------------------------+ Best States ------------- Heat Dissipation 28 Energy Generation 10 Energy Capacity 250 Matter Stores 300 Matter Capacity 300 Sight Range 16 Terrain Scan Density 10 Resistance: KI 20 Resistance: TH 20 Resistance: EX 20 Resistance: EM 20 Resistance: I 20 Resistance: S 20 Resistance: P 20 Evasion (%) 40 Salvage Targeting 1 Offensive Hacking 10 Item Schematics ----------------- None Robot Schematics ------------------ None Fabricated ------------ Nothing Alien Tech Used ----------------- None Achievements -------------- None Challenges ------------ None Game ------ Seed FocalOverloadImmobilizer Manual? 0 Play Time 00:05:23 Cumulative 38.5 hours Start 2020.03.01 @ 17:02:06 End 2020.03.01 @ 17:10:31 Sessions 1 Manual Loads 0 Difficulty Adventurer Special Mode None Game No. 103 Rogue 1 Adventurer 100 Explorer 2 Win Type - Total 0 Types 0/0/0/0/0/0/0 Lore% 29 Gallery% 50 Achievement% 40 Wizard Run 0 Options --------- ASCII 0 Keyboard 0 Movement Arrows Keybinds 0 Fullscreen 1 Font 18/SmallcapsGlow Map View 76x50 Tactical HUD 1 Map Filters NONE Filters NONE Steam 1 RUN: f69f2d0e-3937-497f-91f9-5a0c639e0ea0